fUSD/lending_fUSD_20241021
["ID","MTS","AMOUNT","RATE_DAILY","PERIOD"]
[340585164,1729511432474,-1000.0,0.00023568,2]
[340585165,1729511432483,-150.0,0.000237,2]
[340585166,1729511432493,-730.37,0.00023717,2]
[340585167,1729511432503,-6671.0,0.00023853,2]
[340585168,1729511432512,-150.0,0.000239,2]
[340585169,1729511432525,-535.69,0.0002411,2]
[340585170,1729511432540,-535.69,0.0002411,2]
[340585171,1729511432550,-535.69,0.0002411,2]
[340585172,1729511432559,-535.69,0.0002411,2]
[340585173,1729511432569,-535.69,0.0002411,2]
[340585174,1729511432579,-294.89,0.0002411,2]
[340585175,1729511432588,-400.0,0.000242,8]
[340585176,1729511432599,-900.0,0.000243,8]
[340585177,1729511432608,-318.26,0.000244,2]
[340585178,1729511432618,-1013.68,0.000244,2]
[340585179,1729511432627,-1300.0,0.000244,8]
[340585180,1729511432637,-1800.0,0.000245,8]
[340585181,1729511432648,-2300.0,0.000246,8]
[340585182,1729511432658,-500.0,0.00024657,3]
[340585183,1729511432668,-500.0,0.00024657,3]
[340585184,1729511432678,-421.56370316,0.00024657,3]
[340585185,1729511432688,-500.0,0.00024657,3]
[340585186,1729511432698,-500.0,0.00024657,3]
[340585187,1729511432712,-500.0,0.00024657,3]
[340585188,1729511432722,-500.0,0.00024657,3]
[340585189,1729511432732,-508.08388018,0.00024657,3]
[340585190,1729511432743,-500.0,0.00024657,3]
[340585191,1729511432753,-500.0,0.00024657,3]
[340585192,1729511432763,-500.0,0.00024657,3]
[340585193,1729511432775,-506.50257114,0.00024657,3]
[340585194,1729511432785,-510.64673377,0.00024657,3]
[340585195,1729511432795,-500.0,0.00024657,3]
[340585196,1729511432806,-500.0,0.00024657,3]
[340585197,1729511432816,-500.0,0.00024657,3]
[340585198,1729511432826,-500.0,0.00024657,3]
[340585199,1729511432836,-500.0,0.00024657,3]
[340585200,1729511432847,-500.0,0.00024657,3]
[340585201,1729511432858,-500.0,0.00024657,3]
[340585202,1729511432868,-500.0,0.00024657,3]
[340585203,1729511432878,-500.0,0.00024657,3]
[340585204,1729511432888,-500.0,0.00024657,3]
[340585205,1729511432898,-500.0,0.00024657,3]
[340585206,1729511432908,-526.73630952,0.00024657,3]
[340585207,1729511432919,-750.0,0.00024657,2]
[340585208,1729511432929,-500.0,0.00024657,3]
[340585209,1729511432939,-500.0,0.00024657,3]
[340585210,1729511432951,-500.0,0.00024657,3]
[340585211,1729511432961,-504.01487964,0.00024657,3]
[340585212,1729511432972,-825.1967,0.00024658,2]
[340585213,1729511432982,-7297.8547,0.00024658,2]
[340585214,1729511432991,-2008.6283,0.00024658,2]
[340585215,1729511433002,-400.0,0.000247,9]
[340585216,1729511433012,-2500.0,0.00024721,2]
[340585217,1729511433023,-1651.97874526,0.00024721,2]
[340585218,1729511433033,-167.0,0.00024725,2]
[340585219,1729511433043,-1000.0,0.00024731,2]
[340585220,1729511433054,-255.0598152,0.00024731,2]
[340585221,1729511433064,-1651.97874521,0.00024733,2]
[340585222,1729511433074,-1651.97874521,0.00024745,2]
[340585223,1729511433085,-1651.97874521,0.00024758,2]
[340585224,1729511433097,-1651.97874521,0.0002477,2]
[340585225,1729511433107,-1651.97874521,0.00024782,2]
[340585226,1729511433117,-1651.97874521,0.00024794,2]
[340585227,1729511433128,-400.0,0.000248,9]
[340585228,1729511433138,-1651.97874521,0.00024807,2]
[340585229,1729511433149,-1651.97874521,0.00024819,2]
[340585230,1729511433160,-7500.0,0.00024821,2]
[340585231,1729511433170,-16933.5875422,0.00024821,4]
[340585232,1729511433181,-502.39551463,0.0002483,3]
[340585233,1729511433192,-500.0,0.0002483,3]
[340585234,1729511433203,-500.0,0.0002483,3]
[340585235,1729511433214,-279.7793802,0.0002483,2]
[340585236,1729511433225,-279.7793802,0.00024831,2]
[340585237,1729511433239,-1000.0,0.00024831,2]
[340585238,1729511433251,-26143.2862,0.00024831,2]
[340585239,1729511433275,-73043.73707811,0.00024831,2]
[340585240,1729511433294,-1911.4887306,0.00024831,2]
[340585241,1729511433307,-1339.24086456,0.00024831,2]
[340585242,1729511433334,-3835.99504729,0.00024831,2]
[340585246,1729511439030,-4688.58863593,0.00021453,2]
[340585247,1729511439042,-12052.7951562,0.00024831,2]
[340585248,1729511439055,-3117.00877207,0.00024831,2]
[340585249,1729511439072,-4699.73435117,0.00024831,2]
[340585250,1729511439082,-500.0,0.00024831,2]
[340585251,1729511439092,-10304.06226038,0.00024831,2]
[340585252,1729511439104,-1189.98,0.00024831,2]
[340585253,1729511439116,-1891.803712,0.00024831,2]
[340585254,1729511439128,-308.57114892,0.00024831,2]
[340585255,1729511439140,-46153.9888254,0.00024831,2]
[340585256,1729511439152,-297.46571539,0.00024831,2]
[340585257,1729511439164,-2457.94104147,0.00024831,2]
[340585330,1729511440213,-17779.3825764,0.00024831,2]
[340585331,1729511440276,-1592.4999999,0.00024831,2]
[340585332,1729511440509,-517.05428338,0.00024831,2]
[340585333,1729511440523,-2901.0,0.00024831,2]
[340585334,1729511440570,-64910.29212528,0.00024831,2]
[340585355,1729511443341,-2864.07987093,0.00024831,2]
[340585356,1729511443590,-6111.6870173,0.00024831,2]
[340585361,1729511446404,-14415.24151419,0.00024831,2]
[340585387,1729511558058,150.0,0.000115,3]
[340585389,1729512096368,2980.3627477,0.00025999,60]
[340585390,1729512180366,162.18,0.00010959,2]
[340585414,1729512631351,-166.72671234,0.00014,3]
[340585415,1729512631363,-334.3516032,0.00016605,2]
[340585416,1729512631403,-491.2892338,0.00016605,2]
[340585417,1729512631414,-437.81231549,0.0001726,2]
[340585418,1729512631424,-740.0,0.000183,2]
[340585419,1729512631434,-1151.0,0.00018778,2]
[340585420,1729512631444,-62.41142568,0.00019536,2]
[340585421,1729512631457,-87.89857432,0.00019536,2]
[340585422,1729512631468,-689.59742168,0.00021017,2]
[340585423,1729512631480,-51.39257832,0.00021017,2]
[340585424,1729512631490,-300.0,0.00021935,2]
[340585425,1729512631501,-170.05073386,0.00021935,2]
[340585426,1729512631716,-329.93926614,0.00021935,2]
[340585427,1729512631726,-167.24352784,0.00021935,2]
[340585428,1729512631739,-2080.43647216,0.00021935,2]
[340585429,1729512631749,-2079.72261356,0.00021936,2]
[340585430,1729512631762,-1703.61103245,0.00021936,2]
[340585431,1729512631779,-1968.92248121,0.00021936,2]
[340585432,1729512631797,-5307.10818033,0.00021936,2]
[340585433,1729512631810,-287.37338502,0.00021936,2]
[340585434,1729512631823,-2887.30736843,0.00021936,2]
[340585435,1729512631845,-3412.55,0.00021936,2]
[340585439,1729512638391,-1332.05846622,0.00021936,2]
[340585440,1729512638403,-599.055,0.00021936,2]
[340585441,1729512638416,-623.75147278,0.00021936,2]
[340585442,1729512638426,-200.0,0.00022015,2]
[340585443,1729512638436,-250.0,0.0002217,2]
[340585444,1729512638446,-250.0,0.00022322,2]
[340585445,1729512638456,-250.0,0.00022353,2]
[340585446,1729512638465,-1000.0,0.00022463,2]
[340585447,1729512638475,-14.57632802,0.00022538,2]
[340585448,1729512638486,-168.31367198,0.00022538,2]
[340585449,1729512638496,-150.19,0.00022559,2]
[340585450,1729512638505,-174.58,0.00022908,2]
[340585451,1729512638515,-190.67,0.00023166,2]
[340585452,1729512638524,-187.27,0.00023208,2]
[340585453,1729512638534,-740.99,0.00023281,2]
[340585454,1729512638545,-181.13,0.00023509,2]
[340585455,1729512638554,-421.77993276,0.00023789,2]
[340585456,1729512638564,-421.77993276,0.0002386,2]
[340585457,1729512638574,-150.0,0.00024,2]
[340585458,1729512638584,-421.77993276,0.00024113,2]
[340585459,1729512638595,-238.8232164,0.00024322,2]
[340585460,1729512638608,-591.182765,0.000244,2]
[340585461,1729512638617,-961.51054834,0.000244,2]
[340585462,1729512638629,-34.68945166,0.000244,2]
[340585463,1729512638639,-421.77993276,0.0002453,2]
[340585464,1729512638649,-431.03061558,0.00024531,2]
[340585465,1729512638665,-937.60492114,0.00024531,2]
[340585483,1729512639360,-639.99276328,0.00024531,2]
[340585484,1729512639370,-1848.83123672,0.0002459,2]
[340585485,1729512639625,-5963.14386465,0.0002459,2]
[340585486,1729512639636,-2500.0,0.00024621,2]
[340585487,1729512639647,-2061.1445,0.00024631,2]
[340585488,1729512639657,-31287.5881,0.00024631,2]
[340585489,1729512639669,-7500.0,0.00024631,2]
[340585490,1729512639679,-279.7793802,0.00024638,2]
[340585491,1729512639689,-41362.0,0.00024642,2]
[340585492,1729512639699,-1017.17415515,0.00024711,4]
[340585507,1729512642881,-493.10230639,0.00021915,2]
[340585508,1729512642894,-1329.58122282,0.00021915,2]
[340585509,1729512642937,-10499.23835784,0.00021915,2]
[340585514,1729512645353,-333.18,0.00021915,2]
[340585515,1729512645460,-3412.5,0.00021915,2]
[340585517,1729512903290,1000.0,0.000139,10]
[340585518,1729513197187,250.0,0.0001,2]
[340585520,1729513291794,374.03,0.00026,60]
[340585521,1729513569557,1005.02542301,0.00010999,2]
[340585522,1729513592246,500.0,0.00010999,2]
[340585523,1729513592303,350.22817865,0.00010999,2]
[340585524,1729513593301,351.94881567,0.00010999,2]
[340585526,1729513623176,150.0,0.00010999,2]
[340585533,1729513675735,1405.13506309,0.000109,2]
[340585534,1729513696838,546.89530939,0.000109,2]
[340585537,1729513777968,264.3888,0.000109,2]
[340585539,1729513802767,150.0,0.00010999,2]
[340585551,1729513831693,-1706.175,0.00011,2]
[340585552,1729513831706,-287053.84480734,0.00011,2]
[340585553,1729513831717,-85647.84089599,0.00011,2]
[340585554,1729513831730,-3586.11267,0.00011,2]
[340585555,1729513831751,-1415.43626018,0.00011,2]
[340585556,1729513831762,-12548.9119634,0.00011,2]
[340585557,1729513831774,-9659.8,0.00011,2]
[340585558,1729513831810,-18600.0,0.00011,2]
[340585559,1729513831823,-1336.66,0.00011,2]
[340585574,1729513831997,158.58479249,0.0001099,2]
[340585725,1729513837935,-259999.999999,0.00011,2]
[340585726,1729513838155,-2653.16137925,0.00011,2]
[340585727,1729513838167,-2704.5743954,0.00011,2]
[340585728,1729513838179,-529.12011047,0.00011,2]
[340585729,1729513838270,-409.34646009,0.00011,2]
[340585756,1729513839526,-740.07,0.00011,2]
[340585759,1729513839538,-30168.90623135,0.00011,2]
[340585764,1729513839584,-152371.48742418,0.00011,2]
[340585766,1729513839595,-87108.1858664,0.00011,2]
[340585768,1729513839607,-76440.90965392,0.00011,2]
[340585771,1729513839618,-791.81406173,0.00011,2]
[340585774,1729513839641,-265.1286,0.00011,2]
[340585776,1729513839652,-3729.54558157,0.00011,2]
[340585783,1729513839705,-6809.4,0.00011,2]
[340585790,1729513839765,-857.69234347,0.00011,2]
[340585793,1729513839777,-342.784,0.00011,2]
[340585795,1729513839788,-23713.43801055,0.00011,2]
[340585799,1729513839823,-312.60966571,0.00011,2]
[340585801,1729513839834,-1181.8693022,0.00011,2]
[340586082,1729513842607,-489.64377552,0.00011,2]
[340586100,1729513842772,-449.242,0.00011,2]
[340586103,1729513842784,-734.35182804,0.00011,2]
[340586105,1729513842795,-5985.11227317,0.00011,2]
[340586107,1729513842807,-250.69,0.00011,2]
[340586117,1729513842891,-3200.27984598,0.00011,2]
[340586119,1729513842904,-9029.48,0.00011,2]
[340586122,1729513842915,-4426.88633819,0.00011,2]
[340586124,1729513842927,-498.31462546,0.00011,2]
[340586169,1729513845506,-1143.97892178,0.00011,2]
[340586170,1729513845562,-1394.51005659,0.00011,2]
[340586171,1729513845574,-716.9,0.00011,2]
[340586172,1729513845619,-2207.50677205,0.00011,2]
[340586173,1729513845678,-1509.11451349,0.00011,2]
[340586174,1729513845690,-1891.09879631,0.00011,2]
[340586175,1729513845736,-26766.2388339,0.00011,2]
[340586176,1729513845748,-5940.57856281,0.00011,2]
[340586177,1729513845759,-910.07126,0.00011,2]
[340586178,1729513845847,-15183.09361482,0.00011,2]
[340586179,1729513845905,-269.38241397,0.00011,2]
[340586180,1729513845916,-572.85,0.00011,2]
[340586182,1729513862284,300.0,0.00010999,2]
[340586183,1729513862985,156.45,0.00010959,2]
[340586185,1729513921931,300.0,0.00010999,2]
[340586186,1729513924057,393.04166268,0.000109,2]
[340586187,1729513980699,2583.63996316,0.000109,2]
[340586188,1729513981937,300.0,0.00010999,2]
[340586189,1729514206326,595.15972505,0.00010999,2]
[340586190,1729514311340,1898.104,0.0001078,2]
[340586191,1729514494472,353.73749643,0.000109,2]
[340586192,1729514567481,156.05,0.00010959,2]
[340586193,1729514714237,500.0,0.00010999,2]
[340586194,1729514714278,242.17208009,0.00010999,2]
[340586195,1729514714320,500.0,0.00010999,2]
[340586196,1729514714368,500.0,0.00010999,2]
[340586197,1729514714407,570.55085057,0.00010999,2]
[340586198,1729514714450,500.0,0.00010999,2]
[340586199,1729514714496,500.0,0.00010999,2]
[340586200,1729514714537,500.0,0.00010999,2]
[340586201,1729514714577,500.0,0.00010999,2]
[340586202,1729514714627,500.0,0.00010999,2]
[340586203,1729514714667,500.0,0.00010999,2]
[340586204,1729514714706,500.0,0.00010999,2]
[340586205,1729514714744,500.0,0.00010999,2]
[340586206,1729514714789,500.0,0.00010999,2]
[340586207,1729514714834,500.0,0.00010999,2]
[340586208,1729514714879,500.0,0.00010999,2]
[340586209,1729514715242,500.0,0.00010999,2]
[340586210,1729514715280,500.0,0.00010999,2]
[340586215,1729515000639,250.0,0.0001,2]
[340586221,1729515032652,-1013.0,0.00011,2]
[340586222,1729515032666,-907.75230982,0.00011,2]
[340586223,1729515032678,-8575.42745758,0.00011,2]
[340586224,1729515032690,-250.0,0.00011,2]
[340586225,1729515034512,-341.09075,0.00011,2]
[340586230,1729515038196,-3416.88625302,0.00011,2]
[340586231,1729515038307,-3630.41062198,0.00011,2]
[340586232,1729515038363,-664.56637709,0.00011,2]
[340586233,1729515038379,-147405.91696937,0.00011,2]
[340586234,1729515038389,-28454.08303063,0.00011,2]
[340586276,1729515039832,-332.08,0.00011,2]
[340586294,1729515039996,-2728.5962239,0.00011,2]
[340586296,1729515040009,-1112.5,0.00011,2]
[340586301,1729515040053,-13669.83565752,0.00011,2]
[340586391,1729515043245,-261.17591724,0.00011,2]
[340586394,1729515043276,-6828.2292,0.00011,2]
[340586396,1729515043288,-1058.53341625,0.00011,2]
[340586503,1729515046017,-475.38622563,0.00011,2]
[340586504,1729515046032,-1705.55,0.00011,2]
[340586505,1729515046044,-13668.14964404,0.00011,2]
[340586518,1729515061427,195.0,0.00010999,2]
[340586519,1729515063163,150.0,0.00010999,2]
[340586521,1729515118735,427.42660856,0.000109,2]
[340586522,1729515205817,203.67251739,0.000109,2]
[340586523,1729515229241,835.3785,0.000109,2]
[340586524,1729515281807,150.0,0.0001099,2]
[340586525,1729515301553,300.0,0.00010999,2]
[340586526,1729515323376,150.0,0.00010992,2]
[340586527,1729515335904,160.33,0.00010959,2]
[340586528,1729515511322,2843.778,0.0001078,2]
[340586529,1729515511406,175.634,0.0001078,2]
[340586530,1729515557946,794.8893,0.000109,2]
[340586531,1729515612135,3553.6626,0.000109,2]
[340586532,1729515627779,358.065,0.000109,2]
[340586533,1729515634328,168.75603812,0.0001099,2]
[340586534,1729515742573,-120049.0,0.00011,2]
[340586535,1729515878392,150.0,0.000115,3]
[340586542,1729516051304,167.10384598,0.00011,3]
[340586545,1729516232147,-500.0,0.00013873,2]
[340586546,1729516232157,-405.43589946,0.00015,2]
[340586547,1729516232168,-499.99,0.00015142,2]
[340586548,1729516232178,-444.7436415,0.00015242,2]
[340586549,1729516232188,-9830.51379351,0.00015242,2]
[340586556,1729516238510,-297.97689013,0.00015242,2]
[340586557,1729516239165,-3500.0,0.00015242,2]
[340586579,1729516239997,-1032.28374484,0.00015242,2]
[340586580,1729516240010,-269.70305185,0.00015242,2]
[340586581,1729516240052,-1132.5,0.00015242,2]
[340586582,1729516240377,-281.3614,0.00015242,2]
[340586583,1729516240390,-267.15097201,0.00015242,2]
[340586589,1729516243022,-683.42308022,0.00016166,2]
[340586590,1729516243136,-2001.02691978,0.00016166,2]
[340586591,1729516243146,-250.0,0.00017737,2]
[340586592,1729516243155,-447.649,0.00017746,2]
[340586593,1729516243165,-150.0,0.000181,2]
[340586594,1729516243175,-2306.0,0.000183,2]
[340586595,1729516243184,-703.0,0.000183,2]
[340586596,1729516243194,-7231.71856831,0.000185,2]
[340586597,1729516243204,-150.0,0.00018847,2]
[340586598,1729516243213,-666.89,0.00020655,2]
[340586599,1729516243223,-250.0,0.0002079,2]
[340586600,1729516243233,-250.0,0.00020832,2]
[340586601,1729516243242,-1000.0,0.00020944,2]
[340586602,1729516243252,-160.8,0.000213,7]
[340586603,1729516243262,-186.94,0.00021407,2]
[340586604,1729516243272,-150.0,0.00021847,2]
[340586605,1729516243598,-206.38497288,0.00021915,2]
[340586606,1729516243622,-10765.47283903,0.00022,2]
[340586607,1729516244077,-3007.59665641,0.00022,2]
[340586610,1729516246081,-982.36617519,0.00022,2]
[340586613,1729516772517,175.96,0.00025799,120]
[340586614,1729516808827,250.0,0.0001,2]
[340586727,1729517407602,150.0,0.0001,2]
[340586728,1729517407776,150.0,0.0001,2]
[340586729,1729517408010,150.0,0.0001,2]
[340586730,1729517410473,150.0,0.0001,2]
[340586731,1729517410680,150.0,0.0001,2]
[340586732,1729517410902,150.0,0.0001,2]
[340586733,1729517411112,150.0,0.0001,2]
[340586734,1729517411330,150.0,0.0001,2]
[340586735,1729517411515,150.0,0.0001,2]
[340586736,1729517411729,150.0,0.0001,2]
[340586737,1729517411960,150.0,0.0001,2]
[340586738,1729517412401,150.0,0.0001,2]
[340586739,1729517412623,150.0,0.0001,2]
[340586740,1729517412797,150.0,0.0001,2]
[340586741,1729517413454,150.0,0.0001,2]
[340586742,1729517413499,150.0,0.0001,2]
[340586743,1729517413542,150.0,0.0001,2]
[340586744,1729517413613,150.0,0.0001,2]
[340586745,1729517413816,150.0,0.0001,2]
[340586746,1729517414024,150.0,0.0001,2]
[340586747,1729517414201,150.0,0.0001,2]
[340586748,1729517414404,180.05604895,0.0001,2]
[340586760,1729517432122,-338.67500001,0.00010899,2]
[340586761,1729517432132,-295.44499999,0.000109,2]
[340586763,1729517432144,-43.23,0.000109,2]
[340586765,1729517432154,-156.39,0.00010959,2]
[340586767,1729517432164,-59.31,0.00010999,2]
[340586768,1729517432177,-240.69,0.00010999,2]
[340586769,1729517432187,-500.0,0.00010999,2]
[340586770,1729517432197,-116.52896715,0.00010999,2]
[340586771,1729517432214,-340.43270577,0.00010999,2]
[340586772,1729517432227,-161.0385042,0.00010999,2]
[340586773,1729517432236,-2213.4714958,0.00011,2]
[340586774,1729517432248,-2136.26349976,0.00011,2]
[340586775,1729517432309,-1632.33218236,0.00011,2]
[340586776,1729517432431,-13263.55,0.00011,2]
[340586777,1729517432443,-163307.52195971,0.00011,2]
[340586778,1729517432460,-261.70689844,0.00011,2]
[340586779,1729517432472,-328.52312687,0.00011,2]
[340586907,1729517438673,-3396.34256661,0.00010999,2]
[340586908,1729517438683,-23707.75734549,0.00011,2]
[340586909,1729517438695,-6251.53923303,0.00011,2]
[340586910,1729517438707,-642.02071944,0.00011,2]
[340586911,1729517438718,-634.78418018,0.00011,2]
[340586912,1729517438731,-273.69911658,0.00011,2]
[340586913,1729517438742,-2346.21952339,0.00011,2]
[340586914,1729517439400,-1002.80214107,0.00011,2]
[340586915,1729517439413,-1311.45375638,0.00011,2]
[340586916,1729517439424,-215537.5282935,0.00011,2]
[340586917,1729517439434,-161.65039218,0.000136,2]
[340586918,1729517439444,-347.01481851,0.000137,2]
[340586919,1729517439455,-62818.2853489,0.000138,2]
[340586920,1729517439464,-8434.52182814,0.000145,3]
[340586921,1729517439474,-347.01481842,0.00014937,2]
[340586922,1729517439484,-347.01481842,0.00016174,2]
[340586923,1729517439494,-161.65039214,0.00016408,2]
[340586924,1729517439504,-347.01481842,0.0001741,2]
[340586925,1729517439514,-936.0,0.00017448,2]
[340586926,1729517439524,-555.0,0.00017448,2]
[340586927,1729517439533,-327.30591521,0.00018,2]
[340586928,1729517439543,-1039.21714736,0.00018,2]
[340586929,1729517439552,-150.0,0.000181,2]
[340586930,1729517439562,-6979.80948321,0.0001859,3]
[340586931,1729517439572,-499.99,0.0001859,2]
[340586932,1729517439583,-1000.0,0.000186,2]
[340586933,1729517439593,-347.01481842,0.00018647,2]
[340586934,1729517439603,-812.0,0.00018847,2]
[340586935,1729517439613,-273.303,0.00018847,2]
[340586936,1729517439622,-1245.0,0.00018847,2]
[340586937,1729517439631,-261.984,0.00018847,2]
[340586938,1729517439641,-761.65,0.00019072,2]
[340586939,1729517439650,-161.65039214,0.00019216,2]
[340586940,1729517439660,-347.01481842,0.00019884,2]
[340586941,1729517439670,-1013.0,0.0002,6]
[340586942,1729517439679,-289.47,0.00020051,2]
[340586943,1729517439689,-250.0,0.00020099,2]
[340586944,1729517439698,-152.74,0.00020581,2]
[340586945,1729517439708,-13959.6189664,0.00020763,3]
[340586946,1729517439717,-18793.03752256,0.00020773,2]
[340586947,1729517439729,-268.54000002,0.00020773,2]
[340586948,1729517439740,-279.8900001,0.00020773,2]
[340586949,1729517439752,-339.055,0.00020773,2]
[340586950,1729517439763,-4209.47747732,0.00020773,2]
[340586951,1729517439773,-2751.0,0.00020775,2]
[340586952,1729517439782,-6979.80948321,0.00020845,3]
[340586953,1729517439792,-8507.59,0.00020855,2]
[340586954,1729517439802,-347.01481842,0.00021121,2]
[340586955,1729517439812,-225.21,0.000213,7]
[340586956,1729517439822,-761.65,0.00021335,2]
[340586957,1729517439833,-150.19,0.00021641,2]
[340586958,1729517439842,-250.0,0.00021779,2]
[340586959,1729517439853,-250.0,0.00021805,2]
[340586960,1729517439863,-606.48,0.00021819,2]
[340586961,1729517439873,-200.0,0.00021926,2]
[340586962,1729517439882,-197.62,0.00021959,2]
[340586963,1729517439892,-154.3,0.0002198,2]
[340586964,1729517439902,-6979.80948321,0.0002199,3]
[340586965,1729517439912,-911.00614856,0.0002199,3]
[340586987,1729517440152,-10667.88495424,0.0002199,3]
[340586989,1729517440162,-173.46,0.00021991,2]
[340586991,1729517440173,-155.5122797,0.00021999,2]
[340586993,1729517440183,-15333.27432937,0.00022,2]
[340586995,1729517440192,-276.55634568,0.00022,2]
[340586997,1729517440201,-161.65039214,0.00022023,2]
[340586999,1729517440211,-347.01481842,0.00022357,2]
[340587001,1729517440220,-1131.0,0.000225,2]
[340587003,1729517440230,-1000.0,0.00022897,2]
[340587005,1729517440240,-175.96,0.00022933,2]
[340587007,1729517440250,-150.0,0.00022964,2]
[340587009,1729517440259,-200.0,0.00023,2]
[340587011,1729517440269,-300.57,0.0002337,2]
[340587013,1729517440278,-150.0,0.0002337,2]
[340587015,1729517440288,-359.53,0.0002337,2]
[340587017,1729517440297,-150.36,0.0002337,2]
[340587019,1729517440307,-150.0,0.0002337,2]
[340587021,1729517440316,-150.0,0.0002337,2]
[340587023,1729517440325,-359.53,0.0002337,2]
[340587025,1729517440336,-150.0,0.0002337,2]
[340587027,1729517440346,-359.2,0.0002337,2]
[340587029,1729517440355,-150.0,0.0002337,2]
[340587031,1729517440364,-150.0,0.0002337,2]
[340587033,1729517440375,-167.29,0.00023575,2]
[340587035,1729517440384,-347.01481842,0.00023594,2]
[340587037,1729517440393,-761.65,0.00023599,2]
[340587039,1729517440403,-164.53,0.00023648,2]
[340587041,1729517440412,-6979.80948321,0.0002369,4]
[340587043,1729517440422,-11578.8911028,0.0002369,4]
[340587045,1729517440432,-4008.39617189,0.000237,2]
[340587047,1729517440442,-300.0,0.000238,8]
[340587049,1729517440452,-13959.6189664,0.0002387,4]
[340587051,1729517440461,-23157.7822056,0.0002387,4]
[340587053,1729517440475,-151.0,0.0002387,7]
[340587055,1729517440485,-156.115843,0.0002387,7]
[340587057,1729517440494,-151.0,0.0002387,7]
[340587059,1729517440505,-215.73203111,0.00023879,2]
[340587061,1729517440516,-26945.43209864,0.0002388,2]
[340587063,1729517440526,-6979.80948321,0.0002389,4]
[340587065,1729517440537,-669.11,0.000239,2]
[340587067,1729517440547,-7500.0,0.000239,2]
[340587069,1729517440556,-150.0,0.000239,2]
[340587071,1729517440566,-159.70653956,0.000239,2]
[340587073,1729517440575,-169.79634126,0.000239,2]
[340587076,1729517440586,-700.0,0.000239,8]
[340587077,1729517440596,-23157.7822056,0.0002397,4]
[340587080,1729517440605,-154.3,0.0002397,2]
[340587082,1729517440615,-500.0,0.00023979,2]
[340587083,1729517440625,-304.37745208,0.00023979,2]
[340587086,1729517440635,-184.2422851,0.00023979,2]
[340587088,1729517440644,-151.0,0.0002398,7]
[340587090,1729517440654,-151.0,0.0002398,7]
[340587092,1729517440664,-41878.8568993,0.0002398,4]
[340587094,1729517440673,-23157.7822056,0.0002398,4]
[340587096,1729517440683,-154.3,0.0002398,2]
[340587098,1729517440692,-151.0,0.0002399,7]
[340587100,1729517440703,-151.0,0.0002399,7]
[340587102,1729517440714,-151.0,0.0002399,7]
[340587104,1729517440723,-539.6,0.0002399,7]
[340587106,1729517440733,-539.6,0.0002399,7]
[340587108,1729517440743,-539.6,0.0002399,7]
[340587110,1729517440752,-539.6,0.0002399,7]
[340587112,1729517440762,-151.0,0.0002399,7]
[340587114,1729517440771,-151.0,0.0002399,7]
[340587116,1729517440782,-151.0,0.0002399,7]
[340587118,1729517440791,-190.801914,0.0002399,7]
[340587120,1729517440802,-48858.6663825,0.0002399,4]
[340587122,1729517440812,-185262.257645,0.0002399,4]
[340587124,1729517440822,-151.0,0.0002399,7]
[340587126,1729517440832,-154.3,0.0002399,2]
[340587128,1729517440843,-154.3,0.0002399,2]
[340587130,1729517440856,-151.0,0.0002399,7]
[340587132,1729517440866,-541911.482997,0.00024,2]